bitfinex-derivatives/quotes_BTCF0:USTF0_20250318
["timestamp","ask_amount","ask_price","bid_price","bid_amount"]
[1742276288398,0.10825564,82990.0,82989.0,0.1205075]
[1742276288602,0.10825564,82990.0,82989.0,1.0734075]
[1742276288799,0.14085564,82990.0,82989.0,1.1158075]
[1742276289303,0.14085564,82990.0,82989.0,0.8658075]
[1742276289492,0.17175564,82990.0,82989.0,0.8658075]
[1742276290501,0.17175564,82990.0,82989.0,0.7358075]
[1742276292302,0.0635,82990.0,82989.0,0.7358075]
[1742276293203,0.0326,82990.0,82989.0,0.9758075]
[1742276294192,0.00018081,82991.0,82989.0,1.2161]
[1742276294396,0.10825564,82996.0,82995.0,0.1204988]
[1742276294702,0.25226411,83019.0,82995.0,0.1204988]
[1742276294703,0.0306,83004.0,83002.0,0.1204872]
[1742276294895,0.0306,83004.0,83003.0,0.3303272]
[1742276295096,0.0306,83004.0,83003.0,0.6103272]
[1742276295407,0.1510857,83004.0,83003.0,0.6103272]
[1742276297309,0.1510857,83004.0,83003.0,0.88232403]
[1742276297501,0.1824857,83004.0,83003.0,0.62232403]
[1742276297701,0.062,83004.0,83003.0,0.92232403]
[1742276298408,0.0602305,83021.0,83018.0,0.1204654]
[1742276298714,0.37272821,83019.0,83018.0,0.4953054]
[1742276299509,0.37272821,83019.0,83018.0,0.5256054]
[1742276299810,0.40362821,83019.0,83018.0,0.5576054]
[1742276300202,0.1513641,83019.0,83018.0,0.5576054]
[1742276302307,0.1513641,83019.0,83018.0,0.56645937]
[1742276306313,0.1513641,83019.0,83018.0,0.12931937]
[1742276306502,0.1818641,83019.0,83018.0,0.24411937]
[1742276310319,0.1818641,83019.0,83018.0,0.27461937]
[1742276312821,0.1818641,83019.0,83018.0,0.15981937]
[1742276313020,0.1818641,83019.0,83018.0,0.27461937]
[1742276314525,0.2144641,83019.0,83018.0,0.27461937]
[1742276314823,0.1839641,83019.0,83018.0,0.55661937]
[1742276316425,0.1839641,83019.0,83018.0,0.58661937]
[1742276316726,0.1839639,83019.0,83018.0,0.72661937]
[1742276317024,0.1839639,83019.0,83018.0,0.98661937]
[1742276317525,0.1839639,83019.0,83018.0,0.99661937]
[1742276317924,0.1839639,83019.0,83018.0,0.72661937]
[1742276318126,0.1839639,83019.0,83018.0,1.00661937]
[1742276318310,0.1839639,83019.0,83018.0,0.98661937]
[1742276318513,0.0309,83019.0,83018.0,0.98661937]
[1742276318718,0.1806891,83023.0,83022.0,0.1204596]
[1742276319023,0.1806891,83023.0,83022.0,0.6804596]
[1742276319325,0.0329,83026.0,83025.0,0.1204552]
[1742276319523,0.0329,83026.0,83025.0,0.8252552]
[1742276319713,0.0329,83026.0,83025.0,0.8567552]
[1742276319916,0.0329,83026.0,83025.0,1.1167552]
[1742276320231,0.0329,83026.0,83025.0,0.8591552]
[1742276320524,0.00018068,83027.0,83026.0,0.1204538]
[1742276320718,0.00018068,83027.0,83026.0,0.8404538]
[1742276320918,0.12063298,83027.0,83026.0,0.9050538]
[1742276321219,0.1204496,83029.0,83027.0,0.1204523]
[1742276321420,0.1806689,83033.0,83032.0,0.1204451]
[1742276321617,0.1806689,83033.0,83032.0,0.7852451]
[1742276321819,0.1806689,83033.0,83032.0,0.5252451]
[1742276322123,0.2421689,83033.0,83032.0,0.5598451]
[1742276324225,0.2421689,83033.0,83032.0,0.5898451]
[1742276325130,0.2421689,83033.0,83032.0,0.5598451]
[1742276325823,0.031,83033.0,83032.0,0.8898451]
[1742276326024,0.4812349,83039.0,83038.0,0.1204364]
[1742276326331,0.4812349,83039.0,83038.0,0.5151964]
[1742276327529,0.5443349,83039.0,83038.0,0.5777964]
[1742276327718,0.5443349,83039.0,83038.0,0.51737259]
[1742276328332,0.5443349,83039.0,83038.0,0.57997259]
[1742276332730,0.5443349,83039.0,83038.0,0.45953619]
[1742276333031,0.5443349,83039.0,83038.0,0.57997259]
[1742276334331,0.5443349,83039.0,83038.0,0.41646]
[1742276334528,0.5443349,83039.0,83038.0,0.5368964]
[1742276334731,0.5443349,83039.0,83038.0,0.5488022]
[1742276334933,0.5443349,83039.0,83038.0,0.6125022]
[1742276335132,0.5443349,83039.0,83038.0,0.4977422]
[1742276335335,0.5443349,83039.0,83038.0,0.6125022]
[1742276340038,0.4239,83039.0,83038.0,0.6125022]
[1742276340837,0.5443349,83039.0,83038.0,0.4920658]
[1742276342245,0.5443349,83039.0,83038.0,0.6125022]
[1742276343245,0.1835349,83039.0,83038.0,0.6125022]
[1742276343833,0.0631,83039.0,83038.0,0.8825022]
[1742276344039,0.1835349,83039.0,83038.0,0.6125022]
[1742276344240,0.1835349,83039.0,83038.0,0.6825022]
[1742276344842,0.0306,83039.0,83038.0,0.6825022]
[1742276345034,0.14416765,83042.0,83041.0,0.120432]
[1742276345341,0.14416765,83042.0,83041.0,0.690432]
[1742276345537,0.14416765,83042.0,83041.0,0.773632]
[1742276345848,0.26459825,83042.0,83041.0,0.783632]
[1742276346145,0.29609825,83042.0,83041.0,0.783632]
[1742276346446,0.14416765,83042.0,83041.0,0.523632]
[1742276346647,0.14416765,83042.0,83041.0,0.763632]
[1742276347046,0.14416765,83042.0,83041.0,1.003632]
[1742276347341,0.14416765,83042.0,83041.0,0.763632]
[1742276347548,0.1230096,83050.0,83045.0,0.1204262]
[1742276347549,0.14416765,83046.0,83045.0,0.1204262]
[1742276347747,0.14416765,83046.0,83045.0,1.2504862]
[1742276348140,0.63735016,83046.0,83045.0,0.28]
[1742276348441,0.63735016,83046.0,83041.0,0.0323]
[1742276348442,0.1204306,83042.0,83041.0,0.0323]
[1742276348643,0.1204306,83042.0,83041.0,0.14706]
[1742276348843,0.1849306,83042.0,83041.0,0.267492]
[1742276349539,0.1849306,83042.0,83041.0,0.300092]
[1742276351753,0.1849306,83042.0,83041.0,0.185332]
[1742276351952,0.1849306,83042.0,83041.0,0.17966]
[1742276352547,0.1849306,83042.0,83041.0,0.300092]
[1742276353043,0.18501717,83042.0,83041.0,0.300092]
[1742276362052,0.18501717,83042.0,83041.0,0.330992]
[1742276362252,0.18501717,83042.0,83041.0,0.580992]
[1742276365257,0.32941345,83042.0,83041.0,0.580992]
[1742276366152,0.32941345,83042.0,83041.0,0.590992]
[1742276366153,0.14448285,83042.0,83041.0,0.590992]
[1742276366350,0.30068004,83050.0,83049.0,0.1204204]
[1742276366547,0.30068004,83050.0,83049.0,0.2351404]
[1742276366746,0.36348004,83050.0,83049.0,0.3310404]
[1742276367673,0.36348004,83050.0,83049.0,0.5610404]
[1742276368048,0.24306104,83050.0,83049.0,0.6210404]
[1742276368254,0.18026104,83050.0,83049.0,0.6210404]
[1742276368455,0.30068004,83050.0,83049.0,0.6810404]
[1742276369050,0.120419,83050.0,83049.0,0.6810404]
[1742276371953,0.120419,83050.0,83049.0,0.56062]
[1742276372152,0.120419,83050.0,83049.0,0.5610404]
[1742276372460,0.120419,83050.0,83049.0,0.44062]
[1742276372651,0.120419,83050.0,83049.0,0.37572]
[1742276373049,0.120419,83050.0,83049.0,0.4961404]
[1742276373254,0.120419,83050.0,83049.0,0.5272404]
[1742276373459,0.120419,83050.0,83049.0,0.4125204]
[1742276373656,0.120419,83050.0,83049.0,0.5272404]
[1742276376661,0.120419,83050.0,83049.0,0.7972404]
[1742276376867,0.120419,83050.0,83049.0,0.5272404]
[1742276377065,0.120419,83050.0,83049.0,0.7972404]
[1742276377266,0.0316,83052.0,83051.0,0.1204175]
[1742276377467,0.0316,83052.0,83051.0,0.7304175]
[1742276377658,0.0316,83052.0,83051.0,0.7404175]
[1742276377863,0.0316,83052.0,83051.0,0.5064175]
[1742276378068,0.0316,83052.0,83051.0,0.7564175]
[1742276378274,0.0634,83052.0,83051.0,0.7464175]
[1742276378466,0.0634,83052.0,83051.0,0.7864175]
[1742276378665,0.0634,83052.0,83051.0,0.5064175]
[1742276378877,0.1838161,83052.0,83051.0,0.7764175]
[1742276379169,0.1838161,83052.0,83051.0,0.7664175]
[1742276379369,0.0634,83052.0,83051.0,0.7664175]
[1742276379570,0.1838161,83052.0,83051.0,0.7464175]
[1742276379780,0.1838161,83052.0,83051.0,0.8864175]
[1742276379973,0.1204014,83064.0,83063.0,0.1805965]
[1742276380273,0.1204014,83064.0,83063.0,0.2953165]
[1742276380463,0.1204014,83064.0,83063.0,0.3585165]
[1742276380657,0.1204014,83064.0,83063.0,0.2381193]
[1742276381369,0.1532014,83064.0,83063.0,0.28088039]
[1742276382679,0.1532014,83064.0,83063.0,0.54088039]
[1742276383271,0.1532014,83064.0,83063.0,0.55002546]
[1742276384574,0.1532014,83064.0,83063.0,0.43530546]
[1742276384873,0.1532014,83064.0,83063.0,0.55002546]
[1742276385473,0.1532014,83064.0,83063.0,0.58002546]
[1742276385775,0.1532014,83064.0,83063.0,0.86002546]
[1742276385972,0.1532014,83064.0,83063.0,0.58002546]
[1742276386468,0.72343994,83074.0,83073.0,0.1203856]
[1742276386673,0.60125334,83074.0,83073.0,0.4851056]
[1742276386874,0.24045334,83074.0,83073.0,0.4851056]
[1742276387376,0.24045334,83074.0,83073.0,0.5154056]
[1742276387765,0.27225334,83074.0,83073.0,0.5484056]
[1742276388180,0.0919923,83074.0,83073.0,0.5484056]
[1742276390376,0.0601923,83074.0,83073.0,0.5484056]
[1742276390679,0.0918923,83074.0,83073.0,0.5484056]
[1742276393576,0.0918923,83074.0,83073.0,0.42802]
[1742276393980,0.0918923,83074.0,83073.0,0.5484056]
[1742276396975,0.0317,83074.0,83073.0,0.5484056]
[1742276397186,0.0317,83074.0,83073.0,0.8384056]
[1742276397480,0.0317,83074.0,83073.0,0.5484056]
[1742276397690,0.1520842,83074.0,83073.0,0.5484056]
[1742276397880,0.0317,83074.0,83073.0,0.8184056]
[1742276398178,0.0317,83074.0,83073.0,0.5484056]
[1742276398975,0.1851842,83074.0,83073.0,0.5484056]
[1742276399178,0.0648,83074.0,83073.0,0.5484056]
[1742276399876,0.0648,83074.0,83073.0,0.8184056]
[1742276400079,0.0648,83074.0,83073.0,0.5484056]
[1742276401381,0.1851842,83074.0,83073.0,0.5484056]
[1742276402082,0.1851842,83074.0,83073.0,0.5483656]
[1742276402781,0.0648,83074.0,83073.0,0.5483656]
[1742276405287,0.0601856,83083.0,83082.0,0.1203726]
[1742276406077,0.0913856,83083.0,83082.0,0.1823726]
[1742276406688,0.1235856,83083.0,83082.0,0.2127726]
[1742276406876,0.1203755,83080.0,83079.0,0.11468]
[1742276407280,0.2143755,83080.0,83079.0,0.11468]
[1742276409884,0.1203827,83075.0,83074.0,0.23524416]
[1742276410078,0.1203827,83075.0,83074.0,0.46824416]
[1742276410284,0.1845827,83075.0,83074.0,0.46824416]
[1742276410985,0.1845827,83075.0,83074.0,0.49974416]
[1742276412376,0.1845827,83075.0,83074.0,0.38506416]
[1742276412577,0.1845827,83075.0,83074.0,0.49974416]
[1742276412772,0.1845827,83075.0,83074.0,0.34786056]
[1742276412978,0.1845827,83075.0,83074.0,0.00018056]
[1742276413382,0.5453827,83075.0,83074.0,0.00018056]
[1742276417893,0.5453827,83075.0,83074.0,0.03108056]
[1742276418494,0.5453827,83075.0,83074.0,0.00018056]
[1742276419696,0.5453827,83075.0,83074.0,0.03108056]
[1742276420082,0.5453827,83075.0,83074.0,0.06298056]
[1742276422995,0.5453827,83075.0,83074.0,0.18336476]
[1742276423497,0.5453827,83075.0,83074.0,0.06298056]
[1742276425399,0.5453827,83075.0,83074.0,0.18336476]
[1742276427092,0.1203827,83075.0,83074.0,0.18336476]
[1742276427287,0.1203827,83075.0,83074.0,0.41336476]
[1742276429804,0.1843827,83075.0,83074.0,0.41336476]
[1742276430205,0.1526827,83075.0,83074.0,0.41336476]
[1742276430898,0.1203827,83075.0,83074.0,0.41336476]
[1742276433304,0.1868827,83075.0,83074.0,0.41336476]
[1742276433897,0.1868827,83075.0,83074.0,0.06298056]
[1742276434207,0.1868827,83075.0,83074.0,0.18336476]
[1742276435103,0.1868827,83075.0,83074.0,0.06298056]
[1742276438711,0.1868827,83075.0,83074.0,0.18336476]
[1742276439606,0.1868827,83075.0,83074.0,0.06298056]
[1742276441311,0.1203972,83066.0,83063.0,0.92622329]
[1742276441512,0.1203972,83066.0,83065.0,0.031]
[1742276442012,0.1203972,83066.0,83063.0,0.01222329]
[1742276442013,0.1203987,83064.0,83063.0,0.01222329]
[1742276442223,0.120403,83061.0,83060.0,0.11468]
[1742276442516,0.481203,83061.0,83060.0,0.11468]
[1742276442727,0.481203,83061.0,83060.0,0.12656721]
[1742276442902,0.481203,83061.0,83060.0,0.27927171]
[1742276443104,0.481203,83061.0,83060.0,0.16459171]
[1742276444819,0.481203,83061.0,83060.0,0.04418721]
[1742276446110,0.481203,83061.0,83060.0,0.16459171]
[1742276446719,0.481203,83061.0,83060.0,0.04418721]
[1742276447813,0.481203,83061.0,83060.0,0.16459171]
[1742276448330,0.120403,83061.0,83060.0,0.16459171]
[1742276449112,0.120403,83061.0,83060.0,0.0323]
[1742276451023,0.1204059,83059.0,83055.0,0.11468]
[1742276451217,0.1204103,83056.0,83055.0,0.14778]
[1742276451621,0.1204103,83056.0,83055.0,0.0331]
[1742276451815,0.1204103,83056.0,83052.0,0.00018056]
[1742276451816,0.1204146,83053.0,83052.0,0.00018056]
[1742276455626,0.1204146,83053.0,83052.0,0.00018056]
[1742276455818,0.1522146,83053.0,83052.0,0.03258056]
[1742276457523,0.1850146,83053.0,83052.0,0.03258056]
[1742276459315,0.1850146,83053.0,83052.0,0.00018056]
[1742276459516,0.2154146,83053.0,83052.0,0.00018056]
[1742276461431,0.1850146,83053.0,83052.0,0.00018056]
[1742276469528,0.1850146,83053.0,83052.0,0.12059666]
[1742276470824,0.1850146,83053.0,83052.0,0.18309666]
[1742276472744,0.1532146,83053.0,83052.0,0.18309666]
[1742276473633,0.1204146,83053.0,83052.0,0.29781666]
[1742276473934,0.1806199,83055.0,83054.0,0.1204132]
[1742276474240,0.1806199,83055.0,83054.0,0.3904132]
[1742276475739,0.1204146,83053.0,83052.0,0.17740056]
[1742276476332,0.1824146,83053.0,83052.0,0.17740056]
[1742276477040,0.1824146,83053.0,83052.0,0.06268056]
[1742276477339,0.1824146,83053.0,83052.0,0.18309666]
[1742276477841,0.1204146,83053.0,83052.0,0.18309666]
[1742276479433,0.1204146,83053.0,83052.0,0.43309666]
[1742276480337,0.1204146,83053.0,83052.0,0.18309666]
[1742276480836,0.1812146,83053.0,83052.0,0.18309666]
[1742276483326,0.1509146,83053.0,83052.0,0.18309666]
[1742276483539,0.1204146,83053.0,83052.0,0.18309666]
[1742276483731,0.1204146,83053.0,83052.0,0.29781666]
[1742276484434,0.1204146,83053.0,83052.0,0.56781666]
[1742276487334,0.1204146,83053.0,83052.0,0.84781666]
[1742276487534,0.1204146,83053.0,83052.0,0.56781666]
[1742276488537,0.1204146,83053.0,83052.0,0.58173456]
[1742276489835,0.1816146,83053.0,83052.0,0.58173456]
[1742276490545,0.1816146,83053.0,83052.0,0.56781666]
[1742276491529,0.1816146,83053.0,83052.0,0.58169939]
[1742276492534,0.1816146,83053.0,83052.0,0.56781666]
[1742276498049,0.1816146,83053.0,83052.0,0.44740056]
[1742276498552,0.1816146,83053.0,83052.0,0.33268056]
[1742276498948,0.1816146,83053.0,83052.0,0.00018056]
[1742276499148,0.2134146,83053.0,83052.0,0.00018056]
[1742276503447,0.1816146,83053.0,83052.0,0.00018056]
[1742276504145,0.1816146,83053.0,83052.0,0.09488056]
[1742276505658,0.1816146,83053.0,83052.0,0.21529666]
[1742276507056,0.1204146,83053.0,83052.0,0.46529666]
[1742276507554,0.1846146,83053.0,83052.0,0.46529666]
[1742276516160,0.1846146,83053.0,83052.0,0.47920881]
[1742276517154,0.1846146,83053.0,83052.0,0.47920632]
[1742276520255,0.1846146,83053.0,83052.0,0.46529666]
[1742276529671,0.1527146,83053.0,83052.0,0.46529666]
[1742276529871,0.1858146,83053.0,83052.0,0.46529666]
[1742276530672,0.1527146,83053.0,83052.0,0.46529666]
[1742276531469,0.1204146,83053.0,83052.0,0.46529666]
[1742276531975,0.1204146,83053.0,83052.0,0.57997666]
[1742276532568,0.1523146,83053.0,83052.0,0.57997666]
[1742276532965,0.00172001,83073.0,83052.0,0.97956056]
[1742276533166,0.33694115,83066.0,83065.0,0.1203972]
[1742276533366,0.33694115,83066.0,83065.0,0.5150772]
[1742276533665,0.33694115,83066.0,83065.0,0.5457772]
[1742276534560,0.33694115,83066.0,83065.0,0.6100772]
[1742276535175,0.33694115,83066.0,83065.0,0.8700772]
[1742276535373,0.33694115,83066.0,83065.0,0.6100772]
[1742276536272,0.21654535,83066.0,83065.0,0.6600772]
[1742276536472,0.37301665,83077.0,83068.0,0.1203929]
[1742276536672,0.25263625,83077.0,83075.0,0.2407626]
[1742276536974,0.25263625,83077.0,83076.0,0.21118]
[1742276537169,0.31673625,83077.0,83076.0,0.6115613]
[1742276537370,0.24921436,83079.0,83077.0,0.1203798]
[1742276537572,0.24921436,83079.0,83078.0,0.1857784]
[1742276537776,0.1530697,83084.0,83083.0,0.1203711]
[1742276538076,0.1530697,83084.0,83083.0,0.4950511]
[1742276538574,0.1530697,83084.0,83083.0,0.5604511]
[1742276539176,0.4811668,83089.0,83087.0,0.1203639]
[1742276539376,0.0643,83088.0,83074.0,0.39]
[1742276539575,0.1204596,83022.0,82968.0,0.0602688]
[1742276539871,0.1204683,83016.0,82984.0,0.84594281]
[1742276540173,0.6019083,83016.0,83015.0,0.47446074]
[1742276540373,0.4812683,83016.0,83015.0,0.47446074]
[1742276540768,0.4812683,83016.0,83015.0,0.35594614]
[1742276540977,0.1204741,83012.0,83011.0,0.60202773]
[1742276541278,0.1204741,83012.0,83007.0,0.00018068]
[1742276541279,0.0602383,83011.0,83007.0,0.00018068]
[1742276541467,0.1204799,83008.0,83007.0,0.00018068]
[1742276542963,0.1853799,83008.0,83007.0,0.00018068]
[1742276544370,0.1913799,83008.0,83007.0,0.00018068]
[1742276544971,0.1853799,83008.0,83007.0,0.00018068]
[1742276545171,0.1913799,83008.0,83007.0,0.00018068]
[1742276545476,0.1264799,83008.0,83007.0,0.00018068]
[1742276545676,0.1264799,83008.0,83007.0,0.12070068]
[1742276545978,0.1264799,83008.0,83007.0,0.24118208]
[1742276546476,0.1264799,83008.0,83007.0,0.12070068]
[1742276546773,0.1204799,83008.0,83007.0,0.12070068]
[1742276549284,0.8420799,83008.0,83007.0,0.12070068]
[1742276554889,0.8420799,83008.0,83007.0,0.27378208]
[1742276560490,0.8420799,83008.0,83007.0,0.53378208]
[1742276560491,0.7216,83008.0,83007.0,0.53378208]
[1742276560689,0.10739476,83016.0,83015.0,0.1204697]
[1742276560987,0.00018068,83024.0,83021.0,0.120461]
[1742276561182,0.00018068,83024.0,83021.0,0.350461]
[1742276561783,0.00018068,83024.0,83021.0,0.383161]
[1742276562394,0.00018068,83024.0,83021.0,0.393161]
[1742276562886,0.12063738,83024.0,83021.0,0.393161]
[1742276563592,0.12063738,83024.0,83023.0,0.1204581]
[1742276563784,0.12063738,83024.0,83023.0,1.4247381]
[1742276564300,0.00018068,83024.0,83023.0,1.4247381]
[1742276564491,0.12063738,83024.0,83023.0,1.4876381]
[1742276565785,0.00018068,83024.0,83023.0,1.4876381]
[1742276565982,0.12063738,83024.0,83023.0,1.4876381]
[1742276566387,0.36098068,83024.0,83023.0,1.4876381]
[1742276567391,0.48143738,83024.0,83023.0,1.4876381]
[1742276567583,0.36098068,83024.0,83023.0,1.4876381]
[1742276575903,0.48143738,83024.0,83023.0,1.4876381]
[1742276577204,0.36098068,83024.0,83023.0,1.4876381]
[1742276577813,0.48143738,83024.0,83023.0,1.4876381]
[1742276578004,0.48143738,83024.0,83023.0,1.4867581]
[1742276578202,0.36098068,83024.0,83023.0,1.4867581]
[1742276581299,0.36098068,83024.0,83023.0,1.4967581]
[1742276581512,0.4223,83040.0,83033.0,0.1204436]
[1742276581803,0.36252001,83040.0,83033.0,0.5190036]
[1742276582005,0.1204353,83039.0,83033.0,0.5190036]
[1742276582201,0.3608,83040.0,83033.0,0.5826036]
[1742276584109,0.4812339,83040.0,83033.0,0.5826036]
[1742276584309,0.48295391,83040.0,83033.0,0.5826036]
[1742276584698,0.36252001,83040.0,83033.0,0.6626036]
[1742276584905,0.3608,83040.0,83033.0,0.6626036]
[1742276586408,0.21451078,83042.0,83041.0,0.120432]
[1742276586600,0.21451078,83042.0,83041.0,0.508752]
[1742276587000,0.33494138,83042.0,83041.0,0.508752]
[1742276587297,0.33494138,83042.0,83041.0,0.570952]
[1742276587505,0.1204306,83042.0,83041.0,0.570952]
[1742276587704,0.1204249,83046.0,83043.0,0.0602142]
[1742276587904,0.1204249,83046.0,83045.0,0.1204248]
[1742276588197,0.1204249,83046.0,83045.0,0.3604248]
[1742276588393,0.1204249,83046.0,83045.0,0.4250248]
[1742276588801,0.2418347,83048.0,83047.0,0.1204233]
[1742276589010,0.2418347,83048.0,83047.0,1.3047833]
[1742276589903,0.0612,83048.0,83047.0,1.3047833]
[1742276590110,0.3608,83049.0,83048.0,0.1204219]
[1742276590402,0.4812204,83049.0,83048.0,0.5632219]
[1742276592312,0.3608,83049.0,83048.0,0.5632219]
[1742276593411,0.4812204,83049.0,83048.0,0.5632219]
[1742276595613,0.4812204,83049.0,83048.0,0.5642219]
[1742276596403,0.4812204,83049.0,83048.0,0.5632219]
[1742276599418,0.4812204,83049.0,83048.0,0.6732219]
[1742276599817,0.4812204,83049.0,83048.0,0.5550219]
[1742276600011,0.4812204,83049.0,83047.0,0.9745716]
[1742276600012,0.1204219,83048.0,83047.0,0.91436]
[1742276600204,0.1204405,83037.0,83036.0,0.151233]
[1742276600409,0.4812405,83037.0,83036.0,0.499113]
[1742276601312,0.4802405,83037.0,83036.0,0.499113]
[1742276601709,0.4802405,83037.0,83036.0,0.499073]
[1742276602015,0.4802405,83037.0,83036.0,0.503073]
[1742276602618,0.3608,83037.0,83036.0,0.513073]
[1742276603017,0.4812378,83037.0,83036.0,0.513073]
[1742276603622,0.5119378,83037.0,83036.0,0.513073]
[1742276604119,0.5441378,83037.0,83036.0,0.513073]
[1742276608022,0.5119378,83037.0,83036.0,0.513073]
[1742276610822,0.3915,83037.0,83036.0,0.513073]
[1742276611122,0.4812378,83037.0,83036.0,0.513073]
[1742276615421,0.4812378,83037.0,83036.0,0.544173]
[1742276615628,0.5119378,83037.0,83036.0,0.544173]
[1742276615829,0.5119378,83037.0,83036.0,0.575673]
[1742276616630,0.1204378,83037.0,83036.0,0.575673]
[1742276616831,0.3608,83041.0,83039.0,0.1204335]
[1742276617033,0.3608,83041.0,83040.0,0.1839335]
[1742276617232,0.3608,83041.0,83040.0,0.4539335]
[1742276619229,0.54114162,83041.0,83040.0,0.4539335]
[1742276620727,0.54114162,83041.0,83040.0,0.4569335]
[1742276622036,0.3608,83041.0,83040.0,0.7169335]
[1742276622228,0.21451078,83053.0,83052.0,0.1204161]
[1742276622432,0.21451078,83053.0,83052.0,0.4875361]
[1742276623231,0.21451078,83053.0,83052.0,0.5523361]
[1742276625345,0.0602044,83057.0,83056.0,0.1204103]
[1742276625533,0.0602044,83057.0,83056.0,1.2746903]
[1742276625934,0.21451078,83063.0,83062.0,0.1204016]
[1742276626147,0.21451078,83063.0,83062.0,0.7774016]
[1742276626841,0.21451078,83063.0,83062.0,0.8435016]
[1742276628949,0.1203902,83070.0,83069.0,0.1203914]
[1742276629148,0.1805774,83074.0,83070.0,0.060195]
[1742276629338,0.1805774,83074.0,83073.0,0.1203856]
[1742276629643,0.1805774,83074.0,83073.0,0.3803856]
[1742276630547,0.2434774,83074.0,83073.0,0.3803856]
[1742276634847,0.2434774,83074.0,83073.0,0.26]
[1742276635240,0.2434774,83074.0,83073.0,0.3803856]
[1742276635444,0.2434774,83074.0,83073.0,0.4441856]
[1742276635648,0.1204001,83063.0,83062.0,0.0602002]
[1742276635840,0.1204001,83063.0,83062.0,0.7706802]
[1742276636040,0.1204001,83063.0,83062.0,0.8308816]
[1742276636439,0.1204001,83063.0,83062.0,0.7912016]
[1742276636640,0.2152001,83063.0,83062.0,0.5512016]
[1742276637954,0.2152001,83063.0,83062.0,0.4342016]
[1742276638153,0.2152001,83063.0,83062.0,0.5511216]
[1742276638851,0.2152001,83063.0,83062.0,0.43072]
[1742276639647,0.2152001,83063.0,83062.0,0.11692]
[1742276640452,0.2152001,83063.0,83062.0,0.2373216]
[1742276640655,0.2152001,83063.0,83062.0,0.2988216]
[1742276640853,0.2152001,83063.0,83062.0,0.17842]
[1742276641152,0.2152001,83063.0,83062.0,0.2988216]
[1742276641552,0.2152001,83063.0,83062.0,0.17842]
[1742276643257,0.2152001,83063.0,83062.0,0.2988216]
[1742276643552,0.1840001,83063.0,83062.0,0.5488216]
[1742276646054,0.1521001,83063.0,83062.0,0.5488216]
[1742276646261,0.1204001,83063.0,83062.0,0.5488216]
[1742276646453,0.17894119,83063.0,83062.0,0.5488216]
[1742276648146,0.1204001,83063.0,83062.0,0.5488216]
[1742276650457,0.1204001,83063.0,83062.0,0.42842]
[1742276650664,0.1204001,83063.0,83062.0,0.5488216]
[1742276651752,0.1204001,83063.0,83062.0,0.4319016]
[1742276651949,0.1204001,83063.0,83062.0,0.5483816]
[1742276655758,0.1805977,83065.0,83064.0,0.1203987]
[1742276655960,0.1805977,83065.0,83064.0,0.3703987]
[1742276656161,0.0601993,83065.0,83064.0,0.4337987]
[1742276656568,0.3608,83068.0,83064.0,0.4337987]
[1742276656569,0.1203948,83067.0,83066.0,0.1805922]
[1742276656757,0.1203948,83067.0,83066.0,0.4505922]
[1742276666065,0.3608,83070.0,83069.0,0.1203914]
[1742276666271,0.3608,83070.0,83069.0,0.5064314]
[1742276666463,0.48119,83070.0,83069.0,0.5064314]
[1742276667469,0.3608,83070.0,83069.0,0.5064314]
[1742276668073,0.48119,83070.0,83069.0,0.5064314]
[1742276668374,0.1203841,83075.0,83074.0,0.1203842]
[1742276668675,0.1203841,83075.0,83074.0,0.3703842]
[1742276668974,0.1203841,83075.0,83074.0,0.4016842]
[1742276669559,0.3608,83081.0,83074.0,0.4016842]
[1742276669560,0.3608,83081.0,83078.0,0.1203784]
[1742276669765,0.4811746,83081.0,83078.0,0.4863384]
[1742276669965,0.36252001,83081.0,83078.0,0.4863384]
[1742276670169,0.3608,83081.0,83078.0,0.4863384]
[1742276670471,0.4811769,83079.0,83078.0,0.4863384]
[1742276671575,0.1203769,83079.0,83078.0,0.4863384]
[1742276673068,0.17890568,83079.0,83078.0,0.4863384]
[1742276673374,0.3608,83095.0,83088.0,0.0601814]
[1742276673674,0.1805422,83093.0,83092.0,0.1203552]
[1742276673865,0.1805422,83093.0,83092.0,0.3803552]
[1742276676477,0.1805422,83093.0,83092.0,0.4210552]
[1742276677068,0.3608,83095.0,83094.0,0.1203552]
[1742276677268,0.3608,83095.0,83094.0,0.3803552]
[1742276678080,0.3608,83095.0,83094.0,0.3903552]
[1742276678980,0.3608,83095.0,83094.0,0.3803552]
[1742276679166,0.1601738,83100.0,83094.0,0.3803552]
[1742276679167,0.1,83100.0,83094.0,0.33]
[1742276679367,0.1,83100.0,83099.0,0.120348]
[1742276679575,0.1,83100.0,83099.0,0.370348]
[1742276680170,0.1,83100.0,83099.0,0.453648]
[1742276681082,0.27985317,83100.0,83099.0,0.453648]
[1742276682481,0.27985317,83100.0,83099.0,0.46273342]
[1742276684378,0.1,83100.0,83099.0,0.46273342]
[1742276684879,0.1,83100.0,83099.0,0.48273342]
[1742276685079,0.1,83100.0,83099.0,0.46273342]
[1742276685679,0.2203465,83100.0,83099.0,0.46273342]
[1742276686079,0.3608,83126.0,83100.0,0.0601729]
[1742276686287,0.0829,83115.0,83105.0,0.1203393]
[1742276686585,0.0829,83115.0,83105.0,0.5170993]
[1742276686586,0.0601633,83114.0,83105.0,0.5170993]
[1742276686784,0.1203283,83113.0,83105.0,0.5170993]
[1742276687089,0.1203293,83112.0,83105.0,0.5170993]
[1742276687282,0.1203293,83112.0,83105.0,0.6008993]
[1742276687978,0.17985317,83107.0,83106.0,0.1203378]
[1742276688178,0.17985317,83107.0,83106.0,0.4441378]
[1742276689777,0.14314784,83107.0,83106.0,0.5041378]
[1742276689981,0.0825,83121.0,83120.0,0.1203176]
[1742276690275,0.2028161,83121.0,83120.0,0.4769576]
[1742276690778,0.2028161,83121.0,83120.0,0.5611576]
[1742276690978,0.2028161,83121.0,83120.0,0.57329801]
[1742276693478,0.0825,83121.0,83120.0,0.57329801]
[1742276695484,0.14353428,83125.0,83124.0,0.1203118]
[1742276695684,0.14353428,83125.0,83124.0,0.3603118]
[1742276696187,0.14353428,83125.0,83124.0,0.4504118]
[1742276696392,0.26384458,83125.0,83124.0,0.4504118]
[1742276696594,0.2093103,83125.0,83124.0,0.4504118]
[1742276698486,0.35284458,83125.0,83124.0,0.4504118]
[1742276698895,0.35284458,83125.0,83124.0,0.1203118]
[1742276699088,0.35284458,83125.0,83124.0,0.2369118]
[1742276699483,0.1203118,83124.0,83123.0,0.3608]
[1742276699686,0.1642118,83124.0,83123.0,0.7641132]
[1742276699886,0.1203161,83121.0,83120.0,0.01214041]
[1742276700091,0.1203161,83121.0,83120.0,0.11656]
[1742276701196,0.1203161,83121.0,83120.0,0.12877122]
[1742276701383,0.1203161,83121.0,83120.0,0.24908882]
[1742276702697,0.2065161,83121.0,83120.0,0.33698882]
[1742276703084,0.2065161,83121.0,83120.0,0.57698882]
[1742276705291,0.2065161,83121.0,83120.0,0.24908882]